[Event "Titled Tuesday Blitz April 25 Late 2023"]
[White "Krishnan, Varun"]
[Black "Skibbe, Willi"]
[WhiteFideId "5054508"]
[BlackFideId "4682190"]
[WhiteElo "2341"]
[BlackElo "2176"]
[Result "1/2-1/2"]
[Round "04"]
[TimeControl "180+2"]
[Date "2023.04.25"]
[WhiteClock "0:00:02"]
[BlackClock "0:00:06"]

1. d4 {[%clk 0:03:00]}  d5 {[%clk 0:02:59]} 2. c4 {[%clk 0:03:01]}  e6 {[%clk 0:02:58]} 3. Nc3 {[%clk 0:03:01]}  Nf6 {[%clk 0:02:58]} 4. Bg5 {[%clk 0:03:01]}  Be7 {[%clk 0:02:56]} 5. e3 {[%clk 0:03:02]}  Nbd7 {[%clk 0:02:55]} 6. Qc2 {[%clk 0:03:01]}  O-O {[%clk 0:02:53]} 7. Bd3 {[%clk 0:03:01]}  dxc4 {[%clk 0:02:51]} 8. Bxc4 {[%clk 0:03:01]}  a6 {[%clk 0:02:50]} 9. Nf3 {[%clk 0:02:58]}  b5 {[%clk 0:02:50]} 10. Bd3 {[%clk 0:02:59]}  Bb7 {[%clk 0:02:48]} 11. Ne5 {[%clk 0:02:52]}  h6 {[%clk 0:02:46]} 12. Bh4 {[%clk 0:02:49]}  Nxe5 {[%clk 0:02:43]} 13. dxe5 {[%clk 0:02:48]}  Nd5 {[%clk 0:02:41]} 14. Bxe7 {[%clk 0:02:46]}  Qxe7 {[%clk 0:02:40]} 15. Nxd5 {[%clk 0:02:44]}  Bxd5 {[%clk 0:02:37]} 16. O-O {[%clk 0:02:39]}  c5 {[%clk 0:02:36]} 17. f4 {[%clk 0:02:35]}  c4 {[%clk 0:02:32]} 18. Be4 {[%clk 0:02:35]}  Rfd8 {[%clk 0:02:27]} 19. Rad1 {[%clk 0:02:31]}  Qb7 {[%clk 0:02:18]} 20. Bxd5 {[%clk 0:02:24]}  Rxd5 {[%clk 0:02:19]} 21. Rxd5 {[%clk 0:02:05]}  Qxd5 {[%clk 0:02:19]} 22. Rd1 {[%clk 0:02:05]}  Qc5 {[%clk 0:02:15]} 23. Qe4 {[%clk 0:02:03]}  Rb8 {[%clk 0:02:12]} 24. a3 {[%clk 0:01:42]}  a5 {[%clk 0:02:12]} 25. Rd4 {[%clk 0:01:36]}  c3 {[%clk 0:02:07]} 26. bxc3 {[%clk 0:01:36]}  Qxa3 {[%clk 0:02:01]} 27. Qd3 {[%clk 0:01:26]}  Qf8 {[%clk 0:01:14]} 28. h3 {[%clk 0:01:08]}  b4 {[%clk 0:01:14]} 29. cxb4 {[%clk 0:01:08]}  axb4 {[%clk 0:01:15]} 30. Qb3 {[%clk 0:01:07]}  Qc5 {[%clk 0:01:13]} 31. Rc4 {[%clk 0:01:06]}  Qa5 {[%clk 0:01:03]} 32. Kh2 {[%clk 0:01:03]}  Qa3 {[%clk 0:01:00]} 33. Qxa3 {[%clk 0:01:00]}  bxa3 {[%clk 0:01:01]} 34. Ra4 {[%clk 0:01:00]}  Rb3 {[%clk 0:01:02]} 35. e4 {[%clk 0:00:59]}  g6 {[%clk 0:00:56]} 36. Ra7 {[%clk 0:00:54]}  Re3 {[%clk 0:00:54]} 37. Ra4 {[%clk 0:00:49]}  Kg7 {[%clk 0:00:54]} 38. Kg1 {[%clk 0:00:48]}  h5 {[%clk 0:00:53]} 39. Kf2 {[%clk 0:00:46]}  Rb3 {[%clk 0:00:53]} 40. Ra7 {[%clk 0:00:44]}  Rb2+ {[%clk 0:00:52]} 41. Kf3 {[%clk 0:00:40]}  a2 {[%clk 0:00:50]} 42. g4 {[%clk 0:00:38]}  hxg4+ {[%clk 0:00:47]} 43. hxg4 {[%clk 0:00:38]}  Kf8 {[%clk 0:00:31]} 44. f5 {[%clk 0:00:37]}  gxf5 {[%clk 0:00:30]} 45. exf5 {[%clk 0:00:35]}  Ke8 {[%clk 0:00:27]} 46. f6 {[%clk 0:00:31]}  Kd8 {[%clk 0:00:22]} 47. g5 {[%clk 0:00:30]}  Kc8 {[%clk 0:00:23]} 48. g6 {[%clk 0:00:22]}  Kb8 {[%clk 0:00:22]} 49. Ra3 {[%clk 0:00:18]}  Kc7 {[%clk 0:00:20]} 50. g7 {[%clk 0:00:12]}  Rb3+ {[%clk 0:00:19]} 51. Rxb3 {[%clk 0:00:13]}  a1=Q {[%clk 0:00:19]} 52. g8=Q {[%clk 0:00:11]}  Qd1+ {[%clk 0:00:19]} 53. Kf4 {[%clk 0:00:10]}  Qd4+ {[%clk 0:00:15]} 54. Kf3 {[%clk 0:00:09]}  Qd1+ {[%clk 0:00:15]} 55. Kf2 {[%clk 0:00:07]}  Qd2+ {[%clk 0:00:07]} 56. Kg3 {[%clk 0:00:05]}  Qe1+ {[%clk 0:00:06]} 57. Kf3 {[%clk 0:00:02]}  Qd1+ {[%clk 0:00:06]} 1/2-1/2


[Site "https://www.chess.com"]

[Event "Titled Tuesday Blitz April 25 Late 2023"]
[White "Musovic, Armin"]
[Black "Prieto Aranguren, Alain"]
[WhiteFideId "939935"]
[BlackFideId "2268906"]
[WhiteElo "2322"]
[BlackElo "2209"]
[Result "0-1"]
[Round "04"]
[TimeControl "180+2"]
[Date "2023.04.25"]
[WhiteClock "0:00:06"]
[BlackClock "0:00:36"]

1. a3 {[%clk 0:03:00]}  a5 {[%clk 0:02:54]} 2. Nc3 {[%clk 0:03:01]}  Nc6 {[%clk 0:02:53]} 3. e4 {[%clk 0:02:42]}  e5 {[%clk 0:02:51]} 4. Nf3 {[%clk 0:02:37]}  Nf6 {[%clk 0:02:49]} 5. d4 {[%clk 0:02:21]}  exd4 {[%clk 0:02:49]} 6. Nd5 {[%clk 0:02:21]}  Nxd5 {[%clk 0:02:38]} 7. exd5 {[%clk 0:01:27]}  Qe7+ {[%clk 0:02:36]} 8. Be2 {[%clk 0:01:25]}  Ne5 {[%clk 0:02:36]} 9. O-O {[%clk 0:01:22]}  Nxf3+ {[%clk 0:02:35]} 10. Bxf3 {[%clk 0:01:22]}  Qf6 {[%clk 0:02:36]} 11. Re1+ {[%clk 0:01:19]}  Be7 {[%clk 0:02:34]} 12. d6 {[%clk 0:01:19]}  cxd6 {[%clk 0:02:33]} 13. Qe2 {[%clk 0:01:17]}  Qe5 {[%clk 0:02:25]} 14. Bf4 {[%clk 0:01:13]}  Qxe2 {[%clk 0:02:24]} 15. Rxe2 {[%clk 0:01:14]}  Kd8 {[%clk 0:02:17]} 16. Rae1 {[%clk 0:01:05]}  Bf6 {[%clk 0:02:17]} 17. Bxd6 {[%clk 0:01:05]}  Ra6 {[%clk 0:02:16]} 18. Bb8 {[%clk 0:00:50]}  Re6 {[%clk 0:02:10]} 19. Bd5 {[%clk 0:00:40]}  Rxe2 {[%clk 0:02:09]} 20. Rxe2 {[%clk 0:00:41]}  d6 {[%clk 0:01:50]} 21. Bxf7 {[%clk 0:00:30]}  Bf5 {[%clk 0:01:44]} 22. Bxd6 {[%clk 0:00:19]}  Kd7 {[%clk 0:01:41]} 23. Bg3 {[%clk 0:00:15]}  Rf8 {[%clk 0:01:38]} 24. Bb3 {[%clk 0:00:15]}  b5 {[%clk 0:01:29]} 25. a4 {[%clk 0:00:15]}  b4 {[%clk 0:01:27]} 26. Bc4 {[%clk 0:00:14]}  Kc6 {[%clk 0:01:11]} 27. Bb5+ {[%clk 0:00:13]}  Kb6 {[%clk 0:01:11]} 28. b3 {[%clk 0:00:12]}  Rc8 {[%clk 0:01:08]} 29. h3 {[%clk 0:00:12]}  Rxc2 {[%clk 0:00:59]} 30. Re8 {[%clk 0:00:12]}  d3 {[%clk 0:00:52]} 31. Rb8+ {[%clk 0:00:11]}  Ka7 {[%clk 0:00:50]} 32. Rf8 {[%clk 0:00:04]}  d2 {[%clk 0:00:49]} 33. Bb8+ {[%clk 0:00:04]}  Kb7 {[%clk 0:00:48]} 34. Bf4 {[%clk 0:00:05]}  d1=Q+ {[%clk 0:00:46]} 35. Kh2 {[%clk 0:00:06]}  Qd4 {[%clk 0:00:36]} 0-1


[Site "https://www.chess.com"]

[Event "Titled Tuesday Blitz April 25 Late 2023"]
[White "Sztokbant, Bernardo Vainzoff"]
[Black "Grinev, Valeriy"]
[WhiteFideId "2115956"]
[BlackFideId "14117517"]
[WhiteElo "2222"]
[BlackElo "2366"]
[Result "1-0"]
[Round "04"]
[TimeControl "180+2"]
[Date "2023.04.25"]
[WhiteClock "0:00:52"]
[BlackClock "0:01:41"]

1. e4 {[%clk 0:03:00]}  c5 {[%clk 0:03:00]} 2. Nf3 {[%clk 0:03:00]}  Nc6 {[%clk 0:03:01]} 3. d4 {[%clk 0:03:00]}  cxd4 {[%clk 0:03:02]} 4. Nxd4 {[%clk 0:03:00]}  e5 {[%clk 0:03:02]} 5. Nb5 {[%clk 0:03:00]}  d6 {[%clk 0:03:02]} 6. N1c3 {[%clk 0:03:00]}  a6 {[%clk 0:03:02]} 7. Na3 {[%clk 0:03:00]}  b5 {[%clk 0:03:02]} 8. Nd5 {[%clk 0:03:00]}  Nf6 {[%clk 0:03:03]} 9. Bg5 {[%clk 0:03:01]}  Be7 {[%clk 0:03:03]} 10. Bxf6 {[%clk 0:03:01]}  Bxf6 {[%clk 0:03:04]} 11. c4 {[%clk 0:03:02]}  b4 {[%clk 0:03:04]} 12. Nc2 {[%clk 0:03:02]}  a5 {[%clk 0:03:04]} 13. g3 {[%clk 0:03:03]}  Bg5 {[%clk 0:03:02]} 14. Bg2 {[%clk 0:03:02]}  O-O {[%clk 0:03:01]} 15. O-O {[%clk 0:03:02]}  Be6 {[%clk 0:02:59]} 16. b3 {[%clk 0:02:55]}  Ne7 {[%clk 0:02:54]} 17. Nde3 {[%clk 0:02:51]}  Bxe3 {[%clk 0:02:47]} 18. Nxe3 {[%clk 0:02:51]}  Qb6 {[%clk 0:02:45]} 19. Qe2 {[%clk 0:02:48]}  Rfd8 {[%clk 0:02:44]} 20. Rad1 {[%clk 0:02:47]}  a4 {[%clk 0:02:43]} 21. Rd3 {[%clk 0:02:47]}  axb3 {[%clk 0:02:43]} 22. axb3 {[%clk 0:02:48]}  Ra3 {[%clk 0:02:38]} 23. Rfd1 {[%clk 0:02:48]}  Nc8 {[%clk 0:02:38]} 24. Nf5 {[%clk 0:02:37]}  Bxf5 {[%clk 0:02:36]} 25. exf5 {[%clk 0:02:38]}  h6 {[%clk 0:02:32]} 26. f6 {[%clk 0:02:27]}  gxf6 {[%clk 0:02:31]} 27. Qh5 {[%clk 0:02:18]}  Kf8 {[%clk 0:02:30]} 28. Qxh6+ {[%clk 0:02:18]}  Ke7 {[%clk 0:02:31]} 29. Rf3 {[%clk 0:02:17]}  d5 {[%clk 0:02:29]} 30. cxd5 {[%clk 0:02:06]}  Rd6 {[%clk 0:02:25]} 31. Bh3 {[%clk 0:01:48]}  Na7 {[%clk 0:02:20]} 32. Qg7 {[%clk 0:01:41]}  Qd8 {[%clk 0:02:11]} 33. Re1 {[%clk 0:01:27]}  Nb5 {[%clk 0:02:04]} 34. Be6 {[%clk 0:01:22]}  Rxe6 {[%clk 0:02:01]} 35. dxe6 {[%clk 0:01:23]}  Kxe6 {[%clk 0:02:01]} 36. Qg4+ {[%clk 0:01:05]}  Ke7 {[%clk 0:01:59]} 37. Qxb4+ {[%clk 0:01:05]}  Qd6 {[%clk 0:01:56]} 38. Qxb5 {[%clk 0:01:04]}  Ra2 {[%clk 0:01:52]} 39. Qb7+ {[%clk 0:01:02]}  Ke6 {[%clk 0:01:51]} 40. Qc8+ {[%clk 0:01:01]}  Ke7 {[%clk 0:01:50]} 41. Rc1 {[%clk 0:00:58]}  Ra7 {[%clk 0:01:46]} 42. Rfc3 {[%clk 0:00:54]}  Rd7 {[%clk 0:01:41]} 43. Rc7 {[%clk 0:00:52]} 1-0


[Site "https://www.chess.com"]

[Event "Titled Tuesday Blitz April 25 Late 2023"]
[White "Luukkonen, Tommi"]
[Black "Mustafayev, Farid"]
[WhiteFideId "501808"]
[BlackFideId "13408771"]
[WhiteElo "2296"]
[BlackElo "2237"]
[Result "1-0"]
[Round "04"]
[TimeControl "180+2"]
[Date "2023.04.25"]
[WhiteClock "0:02:06"]
[BlackClock "0:00:03"]

1. d4 {[%clk 0:03:00]}  Nf6 {[%clk 0:02:59]} 2. c4 {[%clk 0:03:00]}  e6 {[%clk 0:02:59]} 3. Nc3 {[%clk 0:03:01]}  Bb4 {[%clk 0:02:58]} 4. e3 {[%clk 0:03:01]}  O-O {[%clk 0:02:57]} 5. a3 {[%clk 0:03:01]}  Bxc3+ {[%clk 0:02:55]} 6. bxc3 {[%clk 0:03:02]}  d5 {[%clk 0:02:56]} 7. cxd5 {[%clk 0:03:00]}  Nxd5 {[%clk 0:02:56]} 8. c4 {[%clk 0:02:55]}  Nf6 {[%clk 0:02:54]} 9. Bd3 {[%clk 0:02:52]}  c5 {[%clk 0:02:52]} 10. Nf3 {[%clk 0:02:50]}  b6 {[%clk 0:02:51]} 11. O-O {[%clk 0:02:48]}  Bb7 {[%clk 0:02:51]} 12. Bb2 {[%clk 0:02:47]}  Nbd7 {[%clk 0:02:42]} 13. Qe2 {[%clk 0:02:47]}  Ne4 {[%clk 0:02:37]} 14. Nd2 {[%clk 0:02:42]}  Ndf6 {[%clk 0:02:31]} 15. f3 {[%clk 0:02:36]}  Nxd2 {[%clk 0:02:31]} 16. Qxd2 {[%clk 0:02:36]}  cxd4 {[%clk 0:02:28]} 17. exd4 {[%clk 0:02:37]}  Qd6 {[%clk 0:02:20]} 18. a4 {[%clk 0:02:36]}  Rfd8 {[%clk 0:02:11]} 19. Rfd1 {[%clk 0:02:35]}  Rac8 {[%clk 0:02:03]} 20. a5 {[%clk 0:02:33]}  Rd7 {[%clk 0:01:16]} 21. a6 {[%clk 0:02:24]}  Ba8 {[%clk 0:01:14]} 22. d5 {[%clk 0:02:17]}  exd5 {[%clk 0:01:12]} 23. Bf5 {[%clk 0:02:16]}  Rxc4 {[%clk 0:01:03]} 24. Bxf6 {[%clk 0:02:13]}  gxf6 {[%clk 0:01:02]} 25. Qh6 {[%clk 0:02:09]}  Rdc7 {[%clk 0:00:17]} 26. Re1 {[%clk 0:02:06]}  Qc5+ {[%clk 0:00:07]} 27. Kh1 {[%clk 0:02:06]}  Rc1 {[%clk 0:00:03]} 28. Qxh7+ {[%clk 0:02:06]}  Kf8 {[%clk 0:00:03]} 29. Qh8# {[%clk 0:02:06]} 1-0


[Site "https://www.chess.com"]

[Event "Titled Tuesday Blitz April 25 Late 2023"]
[White "Ismagilov, Damir"]
[Black "Ansh M Shah"]
[WhiteFideId "34199982"]
[BlackFideId "25033379"]
[WhiteElo "2078"]
[BlackElo "2084"]
[Result "1-0"]
[Round "04"]
[TimeControl "180+2"]
[Date "2023.04.25"]
[WhiteClock "0:01:05"]
[BlackClock "0:00:05"]

1. g4 {[%clk 0:03:00]}  d5 {[%clk 0:02:59]} 2. Bg2 {[%clk 0:03:00]}  c6 {[%clk 0:03:00]} 3. h3 {[%clk 0:03:00]}  h5 {[%clk 0:03:00]} 4. g5 {[%clk 0:03:00]}  h4 {[%clk 0:03:00]} 5. c4 {[%clk 0:03:00]}  e6 {[%clk 0:03:00]} 6. d4 {[%clk 0:02:59]}  dxc4 {[%clk 0:02:59]} 7. Nc3 {[%clk 0:02:59]}  a6 {[%clk 0:02:58]} 8. a4 {[%clk 0:02:58]}  a5 {[%clk 0:02:58]} 9. Nf3 {[%clk 0:02:56]}  Na6 {[%clk 0:02:57]} 10. O-O {[%clk 0:02:56]}  Ne7 {[%clk 0:02:53]} 11. Ne5 {[%clk 0:02:55]}  Nd5 {[%clk 0:02:51]} 12. g6 {[%clk 0:02:52]}  fxg6 {[%clk 0:02:42]} 13. Nxg6 {[%clk 0:02:50]}  Rg8 {[%clk 0:02:33]} 14. e4 {[%clk 0:02:50]}  Nf6 {[%clk 0:02:33]} 15. e5 {[%clk 0:02:49]}  Nd5 {[%clk 0:02:33]} 16. Qh5 {[%clk 0:02:49]}  Kd7 {[%clk 0:02:33]} 17. Ne4 {[%clk 0:02:41]}  Kc7 {[%clk 0:02:26]} 18. Bg5 {[%clk 0:02:39]}  Qe8 {[%clk 0:02:23]} 19. Qh7 {[%clk 0:02:38]}  Bb4 {[%clk 0:02:20]} 20. Nf6 {[%clk 0:02:27]}  Nxf6 {[%clk 0:02:20]} 21. exf6 {[%clk 0:02:27]}  Bd7 {[%clk 0:02:18]} 22. Bf4+ {[%clk 0:02:27]}  Kb6 {[%clk 0:02:18]} 23. Ne5 {[%clk 0:02:20]}  gxf6 {[%clk 0:01:21]} 24. Nxd7+ {[%clk 0:02:18]}  Ka7 {[%clk 0:01:22]} 25. Nxf6 {[%clk 0:02:09]}  Qg6 {[%clk 0:01:22]} 26. Qxg6 {[%clk 0:02:08]}  Rxg6 {[%clk 0:01:23]} 27. Ng4 {[%clk 0:02:08]}  c3 {[%clk 0:01:11]} 28. bxc3 {[%clk 0:02:07]}  Bxc3 {[%clk 0:01:12]} 29. Rad1 {[%clk 0:02:06]}  Nb4 {[%clk 0:01:12]} 30. Bd2 {[%clk 0:01:55]}  Bxd2 {[%clk 0:01:08]} 31. Rxd2 {[%clk 0:01:56]}  Rag8 {[%clk 0:01:06]} 32. Re1 {[%clk 0:01:55]}  b5 {[%clk 0:01:01]} 33. axb5 {[%clk 0:01:52]}  cxb5 {[%clk 0:01:02]} 34. Re5 {[%clk 0:01:52]}  Kb6 {[%clk 0:01:01]} 35. Rde2 {[%clk 0:01:51]}  a4 {[%clk 0:00:57]} 36. Rb2 {[%clk 0:01:47]}  Ka5 {[%clk 0:00:51]} 37. Bf1 {[%clk 0:01:46]}  Rb8 {[%clk 0:00:51]} 38. Re3 {[%clk 0:01:36]}  Nd5 {[%clk 0:00:45]} 39. Rf3 {[%clk 0:01:32]}  b4 {[%clk 0:00:41]} 40. Bc4 {[%clk 0:01:31]}  a3 {[%clk 0:00:41]} 41. Rxa3+ {[%clk 0:01:24]}  bxa3 {[%clk 0:00:39]} 42. Rxb8 {[%clk 0:01:25]}  Nb6 {[%clk 0:00:35]} 43. Ba2 {[%clk 0:01:23]}  Rg7 {[%clk 0:00:22]} 44. Kf1 {[%clk 0:01:21]}  Rc7 {[%clk 0:00:22]} 45. Bxe6 {[%clk 0:01:17]}  Rc6 {[%clk 0:00:17]} 46. Bg8 {[%clk 0:01:15]}  Rc1+ {[%clk 0:00:11]} 47. Kg2 {[%clk 0:01:15]}  Rc2 {[%clk 0:00:11]} 48. Ne3 {[%clk 0:01:12]}  Rd2 {[%clk 0:00:09]} 49. Rxb6 {[%clk 0:01:08]}  a2 {[%clk 0:00:08]} 50. Nc4+ {[%clk 0:01:04]}  Ka4 {[%clk 0:00:07]} 51. Ra6+ {[%clk 0:01:04]}  Kb5 {[%clk 0:00:06]} 52. Nxd2 {[%clk 0:01:04]}  Kxa6 {[%clk 0:00:05]} 53. Bxa2 {[%clk 0:01:05]} 1-0


[Site "https://www.chess.com"]

[Event "Titled Tuesday Blitz April 25 Late 2023"]
[White "Fajdetic, Hrvoje"]
[Black "Ozates, Tuna"]
[WhiteFideId "14501945"]
[BlackFideId "6354521"]
[WhiteElo "2185"]
[BlackElo "2151"]
[Result "0-1"]
[Round "04"]
[TimeControl "180+2"]
[Date "2023.04.25"]
[WhiteClock "0:01:37"]
[BlackClock "0:02:31"]

1. d4 {[%clk 0:02:59]}  Nf6 {[%clk 0:02:58]} 2. Bf4 {[%clk 0:02:57]}  g6 {[%clk 0:02:56]} 3. Nc3 {[%clk 0:02:56]}  Bg7 {[%clk 0:02:57]} 4. e4 {[%clk 0:02:56]}  d6 {[%clk 0:02:58]} 5. Qd2 {[%clk 0:02:55]}  h5 {[%clk 0:02:54]} 6. O-O-O {[%clk 0:02:54]}  c6 {[%clk 0:02:53]} 7. f3 {[%clk 0:02:49]}  Qa5 {[%clk 0:02:53]} 8. Kb1 {[%clk 0:02:49]}  Be6 {[%clk 0:02:53]} 9. h4 {[%clk 0:02:21]}  Na6 {[%clk 0:02:46]} 10. Nh3 {[%clk 0:02:14]}  b5 {[%clk 0:02:42]} 11. Ng5 {[%clk 0:02:03]}  Bc4 {[%clk 0:02:41]} 12. e5 {[%clk 0:01:43]}  Nd5 {[%clk 0:02:31]} 13. Nxd5 {[%clk 0:01:37]}  Qxa2+ {[%clk 0:02:31]} 0-1


[Site "https://www.chess.com"]

[Event "Titled Tuesday Blitz April 25 Late 2023"]
[White "Schuster, Karsten"]
[Black "Vlassov, Nikolai"]
[WhiteFideId "4611071"]
[BlackFideId "4103360"]
[WhiteElo "2294"]
[BlackElo "2324"]
[Result "1/2-1/2"]
[Round "04"]
[TimeControl "180+2"]
[Date "2023.04.25"]
[WhiteClock "0:00:18"]
[BlackClock "0:00:14"]

1. d4 {[%clk 0:02:59]}  Nf6 {[%clk 0:02:59]} 2. c4 {[%clk 0:03:00]}  Nc6 {[%clk 0:02:58]} 3. Nf3 {[%clk 0:02:59]}  e6 {[%clk 0:02:58]} 4. Nc3 {[%clk 0:02:59]}  Bb4 {[%clk 0:02:58]} 5. Qb3 {[%clk 0:02:58]}  a5 {[%clk 0:02:57]} 6. a3 {[%clk 0:02:58]}  a4 {[%clk 0:02:57]} 7. Qc2 {[%clk 0:02:58]}  Bxc3+ {[%clk 0:02:54]} 8. Qxc3 {[%clk 0:02:59]}  d6 {[%clk 0:02:53]} 9. Bg5 {[%clk 0:02:59]}  h6 {[%clk 0:02:53]} 10. Bf4 {[%clk 0:02:53]}  Qe7 {[%clk 0:02:43]} 11. h3 {[%clk 0:02:52]}  O-O {[%clk 0:02:31]} 12. e3 {[%clk 0:02:51]}  Re8 {[%clk 0:02:31]} 13. Be2 {[%clk 0:02:51]}  e5 {[%clk 0:02:31]} 14. dxe5 {[%clk 0:02:51]}  dxe5 {[%clk 0:02:31]} 15. Bg3 {[%clk 0:02:48]}  Ne4 {[%clk 0:02:29]} 16. Qc2 {[%clk 0:02:43]}  Nxg3 {[%clk 0:02:23]} 17. fxg3 {[%clk 0:02:43]}  Qc5 {[%clk 0:02:14]} 18. Kf2 {[%clk 0:02:40]}  e4 {[%clk 0:01:15]} 19. Nd2 {[%clk 0:02:34]}  Bf5 {[%clk 0:01:15]} 20. Rhd1 {[%clk 0:02:26]}  Re6 {[%clk 0:00:58]} 21. Nf1 {[%clk 0:02:23]}  Rf6 {[%clk 0:00:50]} 22. Kg1 {[%clk 0:02:23]}  Ne5 {[%clk 0:00:45]} 23. Rd4 {[%clk 0:02:16]}  Nd3 {[%clk 0:00:38]} 24. Bxd3 {[%clk 0:02:17]}  exd3 {[%clk 0:00:38]} 25. Qd2 {[%clk 0:02:17]}  Re8 {[%clk 0:00:34]} 26. Rf4 {[%clk 0:02:06]}  Qe5 {[%clk 0:00:27]} 27. g4 {[%clk 0:02:02]}  Be4 {[%clk 0:00:23]} 28. Rxf6 {[%clk 0:01:58]}  Qxf6 {[%clk 0:00:22]} 29. Ng3 {[%clk 0:01:57]}  Bg6 {[%clk 0:00:20]} 30. Rf1 {[%clk 0:01:56]}  Qe5 {[%clk 0:00:20]} 31. Rf3 {[%clk 0:01:50]}  c6 {[%clk 0:00:18]} 32. Nf5 {[%clk 0:01:48]}  Rd8 {[%clk 0:00:17]} 33. Nd4 {[%clk 0:01:36]}  Be4 {[%clk 0:00:15]} 34. Rf2 {[%clk 0:01:32]}  c5 {[%clk 0:00:15]} 35. Nf3 {[%clk 0:01:27]}  Qe6 {[%clk 0:00:14]} 36. Qc3 {[%clk 0:01:21]}  Kh7 {[%clk 0:00:14]} 37. Nd2 {[%clk 0:01:21]}  Bg6 {[%clk 0:00:14]} 38. Rf3 {[%clk 0:01:18]}  Rd6 {[%clk 0:00:13]} 39. Kf2 {[%clk 0:01:10]}  Qe7 {[%clk 0:00:13]} 40. e4 {[%clk 0:01:05]}  Bxe4 {[%clk 0:00:11]} 41. Re3 {[%clk 0:01:04]}  Qf6+ {[%clk 0:00:10]} 42. Qxf6 {[%clk 0:01:04]}  Rxf6+ {[%clk 0:00:11]} 43. Kg3 {[%clk 0:00:59]}  Bg6 {[%clk 0:00:11]} 44. h4 {[%clk 0:00:56]}  h5 {[%clk 0:00:10]} 45. g5 {[%clk 0:00:56]}  Rb6 {[%clk 0:00:10]} 46. Nf3 {[%clk 0:00:52]}  Rxb2 {[%clk 0:00:10]} 47. Re7 {[%clk 0:00:45]}  d2 {[%clk 0:00:10]} 48. Rd7 {[%clk 0:00:45]}  Rb3 {[%clk 0:00:10]} 49. Rxd2 {[%clk 0:00:44]}  Rxa3 {[%clk 0:00:10]} 50. Rd7 {[%clk 0:00:43]}  Rb3 {[%clk 0:00:10]} 51. Kf4 {[%clk 0:00:43]}  a3 {[%clk 0:00:11]} 52. Rd8 {[%clk 0:00:41]}  b5 {[%clk 0:00:09]} 53. cxb5 {[%clk 0:00:40]}  Rxb5 {[%clk 0:00:09]} 54. Ra8 {[%clk 0:00:40]}  Rb3 {[%clk 0:00:09]} 55. Ne5 {[%clk 0:00:39]}  Bb1 {[%clk 0:00:09]} 56. Nxf7 {[%clk 0:00:39]}  Rb4+ {[%clk 0:00:08]} 57. Ke5 {[%clk 0:00:38]}  Re4+ {[%clk 0:00:08]} 58. Kd6 {[%clk 0:00:37]}  a2 {[%clk 0:00:08]} 59. g6+ {[%clk 0:00:28]}  Kxg6 {[%clk 0:00:08]} 60. Ne5+ {[%clk 0:00:28]}  Rxe5 {[%clk 0:00:07]} 61. Kxe5 {[%clk 0:00:28]}  c4 {[%clk 0:00:07]} 62. Kd4 {[%clk 0:00:28]}  Kf5 {[%clk 0:00:08]} 63. Kxc4 {[%clk 0:00:28]}  Kg4 {[%clk 0:00:08]} 64. Kb3 {[%clk 0:00:24]}  Kxh4 {[%clk 0:00:09]} 65. Kb2 {[%clk 0:00:24]}  g5 {[%clk 0:00:09]} 66. Rg8 {[%clk 0:00:20]}  g4 {[%clk 0:00:09]} 67. Rh8 {[%clk 0:00:18]}  Kg5 {[%clk 0:00:09]} 68. g3 {[%clk 0:00:17]}  Kg6 {[%clk 0:00:10]} 69. Rg8+ {[%clk 0:00:15]}  Kf5 {[%clk 0:00:10]} 70. Rh8 {[%clk 0:00:15]}  Ke4 {[%clk 0:00:10]} 71. Rxh5 {[%clk 0:00:13]}  Kf3 {[%clk 0:00:10]} 72. Rg5 {[%clk 0:00:13]}  Kxg3 {[%clk 0:00:11]} 73. Rxg4+ {[%clk 0:00:14]}  Kxg4 {[%clk 0:00:11]} 74. Ka1 {[%clk 0:00:14]}  Kf4 {[%clk 0:00:12]} 75. Kb2 {[%clk 0:00:15]}  Ke5 {[%clk 0:00:12]} 76. Ka1 {[%clk 0:00:16]}  Kd4 {[%clk 0:00:13]} 77. Kb2 {[%clk 0:00:17]}  Kc4 {[%clk 0:00:13]} 78. Ka1 {[%clk 0:00:18]}  Kb3 {[%clk 0:00:14]} 1/2-1/2


[Site "https://www.chess.com"]

[Event "Titled Tuesday Blitz April 25 Late 2023"]
[White "Bueno, Alfeu Junior Varela"]
[Black "Toniutti, Ezio"]
[WhiteFideId "2108879"]
[BlackFideId "113034"]
[WhiteElo "2175"]
[BlackElo "2215"]
[Result "1-0"]
[Round "04"]
[TimeControl "180+2"]
[Date "2023.04.25"]
[WhiteClock "0:00:54"]
[BlackClock "0:01:50"]

1. e4 {[%clk 0:03:00]}  e5 {[%clk 0:02:56]} 2. Nc3 {[%clk 0:02:58]}  Nf6 {[%clk 0:02:56]} 3. f4 {[%clk 0:02:58]}  d5 {[%clk 0:02:55]} 4. fxe5 {[%clk 0:02:59]}  Nxe4 {[%clk 0:02:55]} 5. Qf3 {[%clk 0:02:59]}  f5 {[%clk 0:02:55]} 6. d3 {[%clk 0:02:59]}  Nf6 {[%clk 0:02:56]} 7. exf6 {[%clk 0:02:57]}  Qxf6 {[%clk 0:02:55]} 8. Nxd5 {[%clk 0:02:55]}  Qf7 {[%clk 0:02:54]} 9. Bf4 {[%clk 0:02:42]}  Na6 {[%clk 0:02:51]} 10. O-O-O {[%clk 0:01:59]}  Be6 {[%clk 0:02:47]} 11. Nc3 {[%clk 0:01:39]}  O-O-O {[%clk 0:02:45]} 12. a3 {[%clk 0:01:37]}  Qf6 {[%clk 0:02:17]} 13. d4 {[%clk 0:01:29]}  Rxd4 {[%clk 0:02:03]} 14. Rxd4 {[%clk 0:01:26]}  Qxd4 {[%clk 0:02:03]} 15. Bxa6 {[%clk 0:01:26]}  bxa6 {[%clk 0:02:02]} 16. Nge2 {[%clk 0:01:25]}  Qc4 {[%clk 0:01:50]} 17. Qa8+ {[%clk 0:01:18]}  Kd7 {[%clk 0:01:50]} 18. Rd1+ {[%clk 0:01:18]}  Ke7 {[%clk 0:01:50]} 19. Nd4 {[%clk 0:00:54]} 1-0


[Site "https://www.chess.com"]

[Event "Titled Tuesday Blitz April 25 Late 2023"]
[White "Freile Martin, Javier"]
[Black "Jimenez Almeida, Luis David"]
[WhiteFideId "3600165"]
[BlackFideId "22242244"]
[WhiteElo "2320"]
[BlackElo "2245"]
[Result "0-1"]
[Round "04"]
[TimeControl "180+2"]
[Date "2023.04.25"]
[WhiteClock "0:01:19"]
[BlackClock "0:01:51"]

1. c4 {[%clk 0:03:00]}  g6 {[%clk 0:02:57]} 2. d4 {[%clk 0:03:00]}  Bg7 {[%clk 0:02:56]} 3. e4 {[%clk 0:03:00]}  c5 {[%clk 0:02:57]} 4. d5 {[%clk 0:03:00]}  b5 {[%clk 0:02:57]} 5. Nf3 {[%clk 0:02:56]}  d6 {[%clk 0:02:56]} 6. Na3 {[%clk 0:02:55]}  b4 {[%clk 0:02:53]} 7. Nc2 {[%clk 0:02:55]}  Nf6 {[%clk 0:02:53]} 8. Bd3 {[%clk 0:02:55]}  O-O {[%clk 0:02:52]} 9. h3 {[%clk 0:02:55]}  a5 {[%clk 0:02:51]} 10. O-O {[%clk 0:02:54]}  a4 {[%clk 0:02:51]} 11. e5 {[%clk 0:02:48]}  dxe5 {[%clk 0:02:49]} 12. Nxe5 {[%clk 0:02:49]}  Nfd7 {[%clk 0:02:39]} 13. Nc6 {[%clk 0:02:32]}  Nxc6 {[%clk 0:02:36]} 14. dxc6 {[%clk 0:02:33]}  Ne5 {[%clk 0:02:35]} 15. Be4 {[%clk 0:02:33]}  Qxd1 {[%clk 0:02:30]} 16. Rxd1 {[%clk 0:02:33]}  Nxc4 {[%clk 0:02:30]} 17. Bg5 {[%clk 0:01:51]}  Nxb2 {[%clk 0:02:11]} 18. Bxe7 {[%clk 0:01:40]}  Nxd1 {[%clk 0:02:11]} 19. Rxd1 {[%clk 0:01:39]}  Re8 {[%clk 0:02:06]} 20. Bxc5 {[%clk 0:01:36]}  b3 {[%clk 0:02:01]} 21. axb3 {[%clk 0:01:35]}  axb3 {[%clk 0:02:02]} 22. c7 {[%clk 0:01:31]}  bxc2 {[%clk 0:01:54]} 23. Bxc2 {[%clk 0:01:24]}  Ra1 {[%clk 0:01:52]} 24. Rxa1 {[%clk 0:01:19]}  Bxa1 {[%clk 0:01:53]} 25. Ba4 {[%clk 0:01:19]}  Re1+ {[%clk 0:01:51]} 26. Kh2 {[%clk 0:01:19]}  Be5+ {[%clk 0:01:51]} 0-1


[Site "https://www.chess.com"]